bitfinex/quotes_BTCUSD_20240827
["timestamp","ask_amount","ask_price","bid_price","bid_amount"]
[1724721932724,0.0009064,63232.0,63231.0,1.42500728]
[1724721933869,0.0009064,63232.0,63231.0,1.42200728]
[1724721936961,0.0009064,63232.0,63231.0,2.26510728]
[1724721939179,0.0009064,63232.0,63231.0,2.26510194]
[1724721939992,0.0009064,63232.0,63231.0,2.4311929]
[1724721942670,0.0009064,63232.0,63231.0,2.43119505]
[1724721943920,0.0009064,63232.0,63231.0,1.83802033]
[1724721944120,0.0009064,63232.0,63231.0,1.84102033]
[1724721944326,0.00071606,63232.0,63231.0,1.84102033]
[1724721944586,0.00071606,63232.0,63231.0,2.11189505]
[1724721944761,0.00071606,63232.0,63231.0,2.10789505]
[1724721945130,0.00171606,63232.0,63231.0,2.12489505]
[1724721945587,0.00171606,63232.0,63231.0,2.44119505]
[1724721946019,0.00171606,63232.0,63231.0,2.42402673]
[1724721946155,0.00171606,63232.0,63231.0,2.44119679]
[1724721947230,0.00171606,63232.0,63231.0,2.48840631]
[1724721947654,0.00171606,63232.0,63231.0,2.44119679]
[1724721947974,0.00171606,63232.0,63231.0,2.48843652]
[1724721948179,0.00171606,63232.0,63231.0,2.44119679]
[1724721949755,0.00171606,63232.0,63231.0,2.75850694]
[1724721950545,0.00171606,63232.0,63231.0,2.75950694]
[1724721950860,0.00171606,63232.0,63231.0,3.00494734]
[1724721950861,6e-08,63232.0,63231.0,3.00494734]
[1724721951420,0.0009064,63244.0,63243.0,1.10684]
[1724721951683,0.0009064,63244.0,63243.0,1.40317351]
[1724721951906,0.0009064,63244.0,63243.0,1.38017351]
[1724721952827,0.0009064,63244.0,63243.0,1.38517351]
[1724721952999,0.0009064,63244.0,63243.0,1.38516589]
[1724721953202,0.0009064,63244.0,63243.0,1.38016589]
[1724721953355,0.0009064,63244.0,63243.0,1.38416589]
[1724721954531,0.0009064,63244.0,63243.0,1.38816589]
[1724721954738,0.0009064,63244.0,63243.0,1.38416589]
[1724721954945,0.0009064,63244.0,63243.0,1.39216589]
[1724721955154,0.0009064,63244.0,63243.0,1.40216589]
[1724721956388,0.0009064,63244.0,63243.0,1.40216565]
[1724721956592,0.0009064,63244.0,63243.0,1.38501801]
[1724721956791,0.0009064,63244.0,63243.0,1.40216565]
[1724721959707,0.0009064,63244.0,63243.0,1.40216626]
[1724721960137,0.0009064,63244.0,63243.0,1.40216624]
[1724721960926,0.0009064,63244.0,63243.0,1.40743375]
[1724721961895,0.0009064,63244.0,63243.0,1.40743292]
[1724721962068,0.0009064,63244.0,63243.0,1.5181772]
[1724721965692,0.0009064,63244.0,63243.0,1.5010298]
[1724721965895,0.0009064,63244.0,63243.0,1.51817517]
[1724721968259,0.00111613,63259.0,63258.0,0.1969]
[1724721968462,0.00111613,63259.0,63258.0,0.28597165]
[1724721968463,0.46987712,63259.0,63258.0,0.28597165]
[1724721968660,0.00111613,63259.0,63258.0,0.158082]
[1724721968866,0.23301613,63259.0,63258.0,0.80754901]
[1724721969073,0.23301613,63259.0,63258.0,0.91829329]
[1724721969486,0.23301613,63259.0,63258.0,0.80754901]
[1724721969699,0.23301613,63259.0,63258.0,0.91829329]
[1724721969910,0.23301613,63259.0,63258.0,1.23445829]
[1724721971861,0.23301613,63259.0,63258.0,1.23545829]
[1724721972057,0.23301613,63259.0,63258.0,1.21832128]
[1724721972275,0.23301613,63259.0,63258.0,1.2354619]
[1724721973088,0.28081613,63259.0,63258.0,0.80855262]
[1724721973312,1.33913842,63259.0,63258.0,0.001]
[1724721973506,1.41118425,63259.0,63258.0,0.001]
[1724721973722,1.77475052,63259.0,63258.0,0.001]
[1724721974384,0.75505613,63259.0,63258.0,0.002]
[1724721974774,0.229,63256.0,63250.0,0.158102]
[1724721975117,0.229,63255.0,63250.0,0.158102]
[1724721975534,0.229,63255.0,63248.0,0.316211]
[1724721975882,0.229,63255.0,63249.0,0.158103]
[1724721976254,0.229,63254.0,63250.0,0.001]
[1724721976452,0.229,63254.0,63249.0,0.158103]
[1724721976652,0.25378253,63254.0,63249.0,0.158103]
[1724721977401,0.41187553,63254.0,63250.0,0.001]
[1724721977940,0.41187553,63254.0,63249.0,0.158103]
[1724721978445,0.41187553,63254.0,63249.0,0.160103]
[1724721978644,0.41187553,63254.0,63249.0,0.159103]
[1724721978870,0.41187553,63254.0,63249.0,0.001]
[1724721978871,1.106717,63250.0,63249.0,0.001]
[1724721979072,1.106717,63250.0,63249.0,0.002]
[1724721979073,1.53969501,63250.0,63249.0,0.002]
[1724721979679,1.53969501,63250.0,63249.0,0.001]
[1724721980620,0.43493,63239.0,63238.0,0.003]
[1724721981887,0.44093,63239.0,63238.0,0.004]
[1724721982127,0.44093,63239.0,63238.0,0.003]
[1724721982330,0.44093,63239.0,63238.0,0.005]
[1724721982669,0.44093,63239.0,63238.0,0.003]
[1724721982670,1.09823595,63239.0,63238.0,0.003]
[1724721982875,1.09223595,63239.0,63238.0,0.002]
[1724721983460,1.09223595,63239.0,63238.0,0.001]
[1724721983980,1.09223595,63239.0,63238.0,0.002]
[1724721984321,1.09223595,63239.0,63238.0,0.001]
[1724721984724,1.09723595,63239.0,63238.0,0.001]
[1724721985245,1.09723595,63239.0,63238.0,0.002]
[1724721985456,1.09723595,63239.0,63238.0,0.001]
[1724721986949,1.09723595,63239.0,63238.0,0.002]
[1724721988386,1.09704566,63239.0,63238.0,0.002]
[1724721988832,1.09704566,63239.0,63238.0,0.001]
[1724721995674,1.09704566,63239.0,63238.0,0.001824]
[1724721997503,1.04924566,63239.0,63238.0,0.001824]
[1724722001284,1.52168367,63239.0,63238.0,0.001824]
[1724722002065,1.63251883,63239.0,63238.0,0.001824]
[1724722004429,1.16008082,63239.0,63238.0,0.001824]
[1724722004634,0.82024566,63239.0,63238.0,0.001824]
[1724722005511,0.50398566,63239.0,63238.0,0.001824]
[1724722005715,0.02978595,63239.0,63238.0,0.191124]
[1724722006255,0.18791595,63239.0,63238.0,0.191124]
[1724722007312,0.18791595,63239.0,63238.0,0.001824]
[1724722008299,0.18882235,63239.0,63238.0,0.001824]
[1724722010198,0.1640364,63239.0,63238.0,0.001824]
[1724722010601,0.18882263,63239.0,63238.0,0.001824]
[1724722012295,0.50508263,63239.0,63238.0,0.001824]
[1724722013784,0.4802964,63239.0,63238.0,0.001824]
[1724722015579,0.50508276,63239.0,63238.0,0.001824]
[1724722018193,0.18882276,63239.0,63238.0,0.001824]
[1724722021299,0.03069276,63239.0,63238.0,0.254824]
[1724722021493,0.03069276,63239.0,63238.0,0.93749139]
[1724722022589,0.02569276,63239.0,63238.0,0.93649139]
[1724722023019,0.03369276,63239.0,63238.0,0.93649139]
[1724722023221,0.03369276,63239.0,63238.0,0.62022639]
[1724722023426,0.03369276,63239.0,63238.0,0.93649139]
[1724722023627,0.03369276,63239.0,63238.0,1.25275639]
[1724722024382,0.03369276,63239.0,63238.0,1.7251994]
[1724722024581,0.02869276,63239.0,63238.0,1.7251994]
[1724722024779,0.02569276,63239.0,63238.0,1.7251994]
[1724722024993,0.0019064,63239.0,63238.0,1.7251994]
[1724722025399,0.0009064,63239.0,63238.0,1.7251994]
[1724722026004,0.0039064,63239.0,63238.0,1.7251994]
[1724722026246,0.0039064,63239.0,63238.0,1.7261994]
[1724722026587,0.0009064,63239.0,63238.0,1.7261994]
[1724722026736,0.0009064,63239.0,63238.0,1.7291994]
[1724722027177,0.0009064,63239.0,63238.0,1.7491994]
[1724722027582,0.0009064,63239.0,63238.0,1.75118702]
[1724722027783,0.0009064,63239.0,63238.0,1.75018702]
[1724722028002,0.0009064,63239.0,63238.0,1.75518699]
[1724722028144,0.0009064,63239.0,63238.0,1.75018699]
[1724722028971,0.0019064,63239.0,63238.0,1.75418699]
[1724722029476,0.0019064,63239.0,63238.0,1.75818699]
[1724722031016,0.0019064,63239.0,63238.0,1.73518699]
[1724722031212,0.0019064,63239.0,63238.0,0.94647898]
[1724722032068,0.0019064,63239.0,63238.0,1.26274398]
[1724722032274,0.0019064,63239.0,63238.0,0.94647898]
[1724722032806,0.00171608,63239.0,63238.0,0.94647898]
[1724722033374,0.00171608,63239.0,63238.0,0.69347898]
[1724722033582,0.00171608,63239.0,63238.0,0.676321]
[1724722033854,0.00171608,63239.0,63238.0,0.69348937]
[1724722034525,0.00171608,63239.0,63238.0,0.69348984]
[1724722035543,0.00171608,63239.0,63238.0,1.00975484]
[1724722035756,0.00171608,63239.0,63238.0,1.23525484]
[1724722037428,0.00171608,63239.0,63238.0,1.39143285]
[1724722038244,0.00171608,63239.0,63238.0,1.37426401]
[1724722038444,0.00171608,63239.0,63238.0,1.39143125]
[1724722039746,0.00171608,63239.0,63238.0,0.02799124]
[1724722040031,0.00171608,63239.0,63238.0,0.010824]
[1724722040739,0.00171608,63239.0,63238.0,0.168956]
[1724722040939,0.00171608,63239.0,63238.0,0.18612802]
[1724722041144,0.00171608,63239.0,63238.0,0.02799602]
[1724722042069,0.00171608,63239.0,63238.0,0.18612802]
[1724722044673,0.00171608,63239.0,63238.0,0.168956]
[1724722044834,0.00171608,63239.0,63238.0,0.18613167]
[1724722045454,0.00171608,63239.0,63238.0,0.70019667]
[1724722046449,0.02649964,63239.0,63238.0,0.70019667]
[1724722047161,0.02649964,63239.0,63238.0,1.01646167]
[1724722048104,0.02649964,63239.0,63238.0,0.999286]
[1724722048398,0.02649964,63239.0,63238.0,1.01646193]
[1724722048804,0.02649964,63239.0,63238.0,1.01646467]
[1724722051541,0.02649964,63239.0,63238.0,0.999286]
[1724722051746,0.02649964,63239.0,63238.0,1.01646474]
[1724722055448,0.02649964,63239.0,63238.0,1.01646354]
[1724722056771,0.02649964,63239.0,63238.0,1.48890655]
[1724722056970,0.02649964,63239.0,63238.0,1.71970655]
[1724722058248,0.02649964,63239.0,63238.0,1.71970433]
[1724722058637,0.02649964,63239.0,63238.0,1.70252901]
[1724722058837,0.02649964,63239.0,63238.0,1.71970429]
[1724722061249,0.00326756,63239.0,63238.0,2.05896929]
[1724722061449,0.4780064,63250.0,63249.0,1.208325]
[1724722061646,0.4780064,63250.0,63249.0,1.49251345]
[1724722061850,0.4780064,63250.0,63249.0,1.80872345]
[1724722062454,0.0009064,63250.0,63249.0,1.80870959]
[1724722063183,0.0009064,63250.0,63249.0,1.81070959]
[1724722063726,0.0009064,63250.0,63249.0,1.83270959]
[1724722063926,0.0009064,63250.0,63249.0,1.83170959]
[1724722064348,0.0009064,63250.0,63249.0,1.83770959]
[1724722064548,0.0009064,63250.0,63249.0,1.83170959]
[1724722065210,0.0009064,63250.0,63249.0,1.72087443]
[1724722065448,0.0009064,63250.0,63249.0,1.83170959]
[1724722065646,0.0009064,63250.0,63249.0,1.83370959]
[1724722066297,0.0009064,63250.0,63249.0,1.83770959]
[1724722066499,0.0009064,63250.0,63249.0,1.84370959]
[1724722066681,0.0009064,63250.0,63249.0,1.84304893]
[1724722066913,0.0009064,63250.0,63249.0,2.25925893]
[1724722067323,0.0019064,63250.0,63249.0,2.26825893]
[1724722067774,0.0019064,63250.0,63249.0,1.95204893]
[1724722067947,0.0019064,63250.0,63249.0,2.42635893]
[1724722068803,0.0019064,63250.0,63249.0,2.72540751]
[1724722068975,0.0019064,63250.0,63249.0,2.42635901]
[1724722070530,0.0019064,63250.0,63249.0,0.51181084]
[1724722070531,0.3976084,63250.0,63249.0,0.51181084]
[1724722070738,1.0300184,63250.0,63249.0,0.48931]
[1724722070983,1.23399641,63250.0,63249.0,0.48931]
[1724722071196,1.28140287,63250.0,63249.0,0.48931]
[1724722071662,1.28140287,63250.0,63249.0,0.48331]
[1724722072059,1.28340287,63250.0,63249.0,0.48331]
[1724722072257,1.59960787,63250.0,63249.0,0.48331]
[1724722072586,1.59660787,63250.0,63249.0,0.47431]
[1724722072786,1.62339128,63250.0,63249.0,0.47531]
[1724722073167,1.62539128,63250.0,63249.0,0.47531]
[1724722073578,1.30718628,63250.0,63249.0,0.47531]
[1724722073789,1.25977982,63250.0,63249.0,0.47631]
[1724722073992,1.27077982,63250.0,63249.0,0.47631]
[1724722074206,1.11460181,63250.0,63249.0,0.47631]
[1724722074627,0.43439181,63250.0,63249.0,0.47631]
[1724722075494,0.43439181,63250.0,63249.0,0.47531]
[1724722075495,0.43239181,63250.0,63249.0,0.47531]
[1724722075695,0.42139181,63250.0,63249.0,0.47431]
[1724722076052,0.43439181,63250.0,63249.0,0.47631]
[1724722076285,1.27077982,63250.0,63249.0,0.47531]
[1724722076450,1.27077982,63250.0,63232.0,0.000824]
[1724722076451,0.47439,63239.0,63232.0,0.000824]
[1724722076660,1.06975968,63239.0,63232.0,0.000824]
[1724722077017,1.11709522,63239.0,63232.0,0.000824]
[1724722077202,0.77828718,63239.0,63232.0,0.000824]
[1724722077819,0.73048718,63239.0,63232.0,0.000824]
[1724722079136,0.42622718,63239.0,63238.0,0.001824]
[1724722079337,0.75348718,63239.0,63238.0,0.001824]
[1724722079672,0.74148718,63239.0,63238.0,0.000824]
[1724722079875,0.75248718,63239.0,63238.0,0.000824]
[1724722080072,1.05774718,63239.0,63238.0,0.000824]
[1724722080540,1.06874718,63239.0,63238.0,0.000824]
[1724722081094,1.07874718,63239.0,63238.0,0.000824]
[1724722081697,0.76248718,63239.0,63238.0,0.000824]
[1724722082508,0.21472718,63239.0,63238.0,0.185124]
[1724722082718,0.0567875,63239.0,63238.0,0.185124]
[1724722085423,0.2149175,63239.0,63238.0,0.185124]
[1724722085626,0.2149175,63239.0,63238.0,0.000824]
[1724722086009,0.0567875,63239.0,63238.0,0.000824]
[1724722089186,0.0576939,63239.0,63238.0,0.720521]
[1724722089471,0.0576939,63239.0,63238.0,1.37726401]
[1724722089869,0.0329064,63239.0,63238.0,1.37726401]
[1724722090448,0.0009064,63239.0,63238.0,1.37726401]
[1724722090648,0.0089064,63239.0,63238.0,1.37726401]
[1724722090888,0.0089064,63239.0,63238.0,1.37826401]
[1724722090889,0.0209064,63239.0,63238.0,1.37826401]
[1724722091373,0.0089064,63239.0,63238.0,1.37726401]
[1724722091575,0.0089064,63239.0,63238.0,1.37826401]
[1724722091733,0.0179064,63239.0,63238.0,1.37826401]
[1724722092272,0.0089064,63239.0,63238.0,1.37726401]
[1724722092430,0.0029064,63239.0,63238.0,1.37726401]
[1724722093739,0.0009064,63239.0,63238.0,1.37726401]
[1724722094440,0.0009064,63239.0,63238.0,1.37926401]
[1724722096341,0.0009064,63239.0,63238.0,1.39644011]
[1724722096547,0.0009064,63239.0,63238.0,1.87083011]
[1724722097358,0.0009064,63239.0,63238.0,1.87082655]
[1724722097810,0.0009064,63239.0,63238.0,1.85365401]
[1724722097982,0.0009064,63239.0,63238.0,1.87082647]
[1724722098697,0.1590364,63239.0,63238.0,0.477214]
[1724722098888,0.0009064,63239.0,63238.0,0.635346]
[1724722099033,0.0009064,63239.0,63238.0,1.188411]
[1724722099233,0.0009064,63239.0,63238.0,0.872146]
[1724722099473,0.0009064,63239.0,63238.0,0.635346]
[1724722099783,0.0009064,63239.0,63238.0,0.633346]
[1724722099983,0.02569066,63239.0,63238.0,0.949611]
[1724722100117,0.02569066,63239.0,63238.0,0.951611]
[1724722100118,0.04669066,63239.0,63238.0,0.951611]
[1724722100324,0.04669066,63239.0,63238.0,0.96878604]
[1724722100539,0.03569066,63239.0,63238.0,0.96778604]
[1724722100730,0.03569066,63239.0,63238.0,1.14378604]
[1724722100929,0.03569066,63239.0,63238.0,1.14478602]
[1724722101153,0.03669066,63239.0,63238.0,1.14478602]
[1724722101314,0.0119064,63239.0,63238.0,0.82852102]
[1724722101515,0.03569108,63239.0,63238.0,0.67038902]
[1724722102221,0.02569108,63239.0,63238.0,0.66838902]
[1724722102420,0.02569108,63239.0,63238.0,0.82752102]
[1724722102680,0.02569108,63239.0,63238.0,0.66938902]
[1724722103056,0.02669108,63239.0,63238.0,0.66938902]
[1724722103690,0.02569108,63239.0,63238.0,0.66938902]
[1724722104027,0.03169108,63239.0,63238.0,0.66938902]
[1724722104216,0.03469108,63239.0,63238.0,0.66938902]
[1724722104555,0.02869108,63239.0,63238.0,0.66838902]
[1724722104984,0.02869108,63239.0,63238.0,0.65052102]
[1724722104985,0.25829108,63239.0,63238.0,0.65052102]
[1724722105353,0.02969108,63239.0,63238.0,0.65052102]
[1724722105771,0.03169108,63239.0,63238.0,0.65052102]
[1724722105978,0.02569108,63239.0,63238.0,0.65052102]
[1724722106443,0.02969108,63239.0,63238.0,0.65052102]
[1724722106644,0.03169108,63239.0,63238.0,0.65052102]
[1724722106799,0.02569108,63239.0,63238.0,0.65052102]
[1724722107181,0.02969108,63239.0,63238.0,0.49238902]
[1724722107384,0.26229108,63239.0,63238.0,0.633346]
[1724722109035,0.25929108,63239.0,63238.0,0.633346]
[1724722109432,0.26229108,63239.0,63238.0,0.633346]
[1724722109636,0.26229108,63239.0,63238.0,0.475214]
[1724722109836,0.25929108,63239.0,63238.0,0.475214]
[1724722110209,0.26229108,63239.0,63238.0,0.475214]
[1724722111198,0.02969108,63239.0,63238.0,0.475214]
[1724722112790,0.02669108,63239.0,63238.0,0.475214]
[1724722113132,0.02869108,63239.0,63238.0,0.475214]
[1724722113301,0.02969108,63239.0,63238.0,0.475214]
[1724722126034,0.02969108,63239.0,63238.0,0.657014]
[1724722126562,0.02969108,63239.0,63238.0,0.67418348]
[1724722128487,0.02969108,63239.0,63238.0,0.83231548]
[1724722128692,0.02969108,63239.0,63238.0,0.67418348]
[1724722128916,0.02969108,63239.0,63238.0,0.83231548]
[1724722131089,0.02969108,63239.0,63238.0,0.815146]
[1724722131290,0.02969108,63239.0,63238.0,0.8323161]
[1724722132467,0.02969108,63239.0,63238.0,1.1485811]
[1724722132667,0.02969108,63239.0,63238.0,0.8323161]
[1724722133997,0.02969108,63239.0,63238.0,1.1485811]
[1724722134611,0.02969108,63239.0,63238.0,1.14858134]
[1724722134812,0.02969108,63239.0,63238.0,0.83231634]
[1724722135187,0.02969108,63239.0,63238.0,1.14858134]
[1724722135403,0.02969108,63239.0,63238.0,0.83231634]
[1724722136348,0.02969108,63239.0,63238.0,0.67418434]
[1724722136582,0.02969108,63239.0,63238.0,0.49238434]
[1724722136811,0.57523919,63239.0,63238.0,0.475214]
[1724722137070,0.18782108,63239.0,63238.0,0.475214]
[1724722137267,0.2589969,63239.0,63238.0,0.475214]
[1724722138151,0.18782108,63239.0,63238.0,0.475214]
[1724722138290,0.2589969,63239.0,63238.0,0.475214]
[1724722138499,0.18782108,63239.0,63238.0,0.475214]
[1724722138954,0.25899934,63239.0,63238.0,0.475214]
[1724722139165,0.18782108,63239.0,63238.0,0.475214]
[1724722139333,0.25899806,63239.0,63238.0,0.475214]
[1724722139692,0.25900104,63239.0,63238.0,0.475214]
[1724722140023,0.18782108,63239.0,63238.0,0.475214]
[1724722140230,0.25900104,63239.0,63238.0,0.475214]
[1724722140432,0.18782108,63239.0,63238.0,0.475214]
[1724722141242,0.2352755,63239.0,63238.0,0.475214]
[1724722141460,0.25900104,63239.0,63238.0,0.475214]
[1724722142072,0.18782108,63239.0,63238.0,0.475214]
[1724722142507,0.25900104,63239.0,63238.0,0.475214]
[1724722143142,0.10087104,63239.0,63238.0,0.475214]
[1724722143361,0.10087104,63239.0,63238.0,0.700614]
[1724722144786,0.10087104,63239.0,63238.0,0.633346]
[1724722146217,0.10087104,63239.0,63238.0,0.819146]
[1724722146218,0.02969108,63239.0,63238.0,0.819146]
[1724722146761,0.02969108,63239.0,63238.0,1.135411]
[1724722147268,0.02969108,63239.0,63238.0,0.83631328]
[1724722147501,0.02969108,63239.0,63238.0,1.69424328]
[1724722148343,0.0049064,63239.0,63238.0,1.69424328]
[1724722148546,0.0049064,63239.0,63238.0,1.85042129]
[1724722148752,0.0049064,63239.0,63238.0,1.83325401]
[1724722149719,0.02969022,63239.0,63238.0,1.83325401]
[1724722149926,0.02969022,63239.0,63238.0,1.85041985]
[1724722150985,0.02669022,63239.0,63238.0,1.85041985]
[1724722152139,0.0009064,63239.0,63238.0,1.85041985]
[1724722152536,0.0009064,63239.0,63238.0,1.85241985]
[1724722152874,0.0009064,63239.0,63238.0,1.83525401]
[1724722153095,0.0009064,63239.0,63238.0,2.48494786]
[1724722153307,0.0009064,63239.0,63238.0,2.19168286]
[1724722155935,0.0009064,63239.0,63238.0,2.17451901]
[1724722156133,0.0009064,63239.0,63238.0,2.19168004]
[1724722158987,0.0009064,63239.0,63238.0,2.17451901]
[1724722159405,0.0009064,63239.0,63238.0,2.19168092]
[1724722159968,0.0009064,63239.0,63238.0,2.20351579]
[1724722161644,0.2326064,63239.0,63238.0,1.45305079]
[1724722161875,0.2326064,63239.0,63238.0,0.65250791]
[1724722162155,0.2326064,63239.0,63238.0,0.635346]
[1724722162357,0.0009064,63239.0,63238.0,0.951611]
[1724722162591,0.0009064,63239.0,63238.0,0.96878373]
[1724722162800,0.0009064,63239.0,63238.0,0.949611]
[1724722162970,0.0009064,63239.0,63238.0,1.77142739]
[1724722163109,0.0039064,63239.0,63238.0,1.77142739]
[1724722163373,0.0009064,63239.0,63238.0,1.77142739]
[1724722163822,0.0029064,63239.0,63238.0,1.55102739]
[1724722163995,0.0029064,63239.0,63238.0,1.44022558]
[1724722164174,0.0009064,63239.0,63238.0,1.44022558]
[1724722164370,0.0009064,63239.0,63238.0,1.12396058]
[1724722165597,0.0009064,63239.0,63238.0,1.12296058]
[1724722165794,0.0009064,63239.0,63238.0,1.10578901]
[1724722166016,0.0009064,63239.0,63238.0,1.12496037]
[1724722169918,0.0009064,63239.0,63238.0,1.29966037]
[1724722173359,0.0009064,63239.0,63238.0,1.28248901]
[1724722173580,0.0009064,63239.0,63238.0,1.29966185]
[1724722174765,0.02569015,63239.0,63238.0,1.29966185]
[1724722176564,0.02569015,63239.0,63238.0,1.29966188]
[1724722180113,0.02569015,63239.0,63238.0,1.28248901]
[1724722180315,0.02569015,63239.0,63238.0,0.49438839]
[1724722180503,0.02569015,63239.0,63238.0,0.477214]
[1724722180987,0.02569015,63239.0,63238.0,0.49439238]
[1724722181433,0.02569015,63239.0,63238.0,0.49239238]
[1724722181634,0.02669015,63239.0,63238.0,0.49239238]
[1724722182267,0.02669015,63239.0,63238.0,0.475214]
[1724722182680,0.02969015,63239.0,63238.0,0.475214]
[1724722183078,0.25829015,63239.0,63238.0,0.475214]
[1724722183279,0.25629015,63239.0,63238.0,0.475214]
[1724722183683,0.25929015,63239.0,63238.0,0.475214]
[1724722187040,0.02969015,63239.0,63238.0,0.633346]
[1724722187371,0.02969015,63239.0,63238.0,0.851646]
[1724722187572,0.02969015,63239.0,63238.0,0.71069072]
[1724722187936,0.02969015,63239.0,63238.0,0.475214]
[1724722188141,0.02969015,63239.0,63238.0,0.6505215]
[1724722188342,0.02969015,63239.0,63238.0,0.4923895]
[1724722188612,0.18782015,63239.0,63238.0,0.4923895]
[1724722188818,0.25929015,63239.0,63238.0,0.4923895]
[1724722191558,0.25929015,63239.0,63238.0,0.49238986]
[1724722193425,0.2345064,63239.0,63238.0,0.49238986]
[1724722193698,0.0049064,63239.0,63238.0,0.49238986]
[1724722195028,0.02969051,63239.0,63238.0,0.475214]
[1724722195212,0.02969051,63239.0,63238.0,0.49239197]
[1724722198103,0.02969051,63239.0,63238.0,0.65052397]
[1724722199200,0.02969051,63239.0,63238.0,0.82612397]
[1724722200020,0.02969051,63239.0,63238.0,2.15109698]
[1724722200827,0.02969051,63239.0,63238.0,2.17409698]
[1724722201026,0.02969051,63239.0,63238.0,2.18593538]
[1724722201655,0.02669051,63239.0,63238.0,2.18593538]
[1724722202057,0.02869051,63239.0,63238.0,2.18593538]
[1724722202449,0.02669051,63239.0,63238.0,2.18593538]
[1724722203431,0.02669051,63239.0,63238.0,2.28593538]
[1724722203660,0.02569051,63239.0,63238.0,2.28593538]
[1724722203880,0.02569051,63239.0,63238.0,2.27409698]
[1724722204099,0.02569051,63239.0,63238.0,2.26875736]
[1724722204321,0.02569051,63239.0,63238.0,2.25691901]
[1724722204517,0.0009064,63250.0,63249.0,0.790525]
[1724722204724,0.00111613,63259.0,63258.0,0.869847]
[1724722204960,0.00906401,63268.0,63267.0,0.33366]
[1724722204961,0.477825,63268.0,63267.0,0.33366]
[1724722205158,0.477825,63268.0,63267.0,1.15392944]
[1724722205368,0.477825,63268.0,63267.0,1.47587982]
[1724722205369,0.00906401,63268.0,63267.0,1.47587982]
[1724722205540,0.00906401,63268.0,63267.0,1.49303187]
[1724722205880,0.0004,63279.0,63273.0,0.790225]
[1724722206059,0.0004,63279.0,63273.0,2.28318687]
[1724722206704,0.0004,63279.0,63273.0,2.17238506]
[1724722206897,0.0004,63279.0,63273.0,2.14438506]
[1724722207094,0.00799764,63274.0,63273.0,1.60829506]
[1724722207322,0.00799764,63274.0,63273.0,0.627185]
[1724722207529,0.00799764,63274.0,63273.0,0.47414]
[1724722207774,0.24409764,63274.0,63273.0,0.47414]
[1724722208003,0.40213964,63274.0,63273.0,0.47414]
[1724722208476,0.71822464,63274.0,63273.0,0.47414]
[1724722208653,1.03530964,63274.0,63273.0,0.47914]
[1724722209295,1.03530964,63274.0,63273.0,0.48914]
[1724722209497,1.03630964,63274.0,63273.0,0.48914]
[1724722209883,1.05120964,63274.0,63273.0,0.47914]
[1724722210089,1.36629464,63274.0,63273.0,0.47414]
[1724722210538,1.37229464,63274.0,63273.0,0.47714]
[1724722210908,1.37229464,63274.0,63273.0,0.47514]
[1724722211589,1.37629464,63274.0,63273.0,0.47414]
[1724722211785,1.52747265,63274.0,63273.0,0.47414]
[1724722212421,1.53347265,63274.0,63273.0,0.47514]
[1724722212841,1.84355765,63274.0,63273.0,0.47414]
[1724722213136,2.03405049,63274.0,63273.0,0.47414]
[1724722213338,2.04805049,63274.0,63273.0,0.47514]
[1724722213728,2.06205049,63274.0,63273.0,0.47514]
[1724722214180,2.04905049,63274.0,63273.0,0.47514]
[1724722214602,1.95455765,63274.0,63273.0,0.47514]
[1724722214806,2.0866737,63274.0,63273.0,0.47514]
[1724722214980,2.0866737,63274.0,63273.0,0.47414]
[1724722214981,2.0726737,63274.0,63273.0,0.47414]
[1724722215524,2.0866737,63274.0,63273.0,0.47514]
[1724722216625,2.28464265,63274.0,63273.0,0.47514]
[1724722216835,0.15812,63243.0,63242.0,0.1751]
[1724722217036,0.47436,63243.0,63242.0,0.1751]
[1724722217242,0.15812,63243.0,63242.0,0.1751]
[1724722217657,0.158125,63241.0,63239.0,0.00539585]
[1724722217857,0.158125,63241.0,63238.0,0.000824]
[1724722218262,0.158125,63241.0,63238.0,0.00619816]
[1724722218663,0.158125,63241.0,63238.0,0.000824]
[1724722220435,0.158128,63240.0,63238.0,0.000824]
[1724722221235,0.158123,63242.0,63238.0,0.000824]
[1724722221434,0.158123,63242.0,63239.0,0.2247]
[1724722221689,0.02478407,63244.0,63238.0,0.000824]
[1724722221997,0.158127,63241.0,63238.0,0.000824]
[1724722222794,0.02478407,63244.0,63238.0,0.000824]
[1724722222964,0.158123,63242.0,63238.0,0.000824]
[1724722223328,0.158128,63240.0,63238.0,0.000824]
[1724722223640,0.15813,63239.0,63238.0,0.000824]
[1724722224201,0.47439,63239.0,63238.0,0.000824]
[1724722224804,0.15813,63239.0,63238.0,0.000824]
[1724722225804,0.158128,63240.0,63238.0,0.000824]
[1724722226031,0.15813,63239.0,63238.0,0.000824]
[1724722226440,0.16313,63239.0,63238.0,0.000824]
[1724722226745,0.15913,63239.0,63238.0,0.000824]
[1724722226946,0.15813,63239.0,63238.0,0.000824]
[1724722227146,0.161954,63239.0,63238.0,0.000824]
[1724722227457,0.163954,63239.0,63238.0,0.000824]
[1724722229297,0.16176378,63239.0,63238.0,0.000824]
[1724722231373,0.005824,63239.0,63238.0,0.000824]
[1724722232352,0.002824,63239.0,63238.0,0.000824]
[1724722232748,0.004824,63239.0,63238.0,0.000824]
[1724722232958,0.004824,63239.0,63238.0,0.184924]
[1724722233186,0.002824,63239.0,63238.0,1.67592901]
[1724722233358,0.000824,63239.0,63238.0,1.35966401]
[1724722233563,0.000824,63239.0,63238.0,1.36496821]
[1724722233771,0.001824,63239.0,63238.0,1.36496821]
[1724722233989,0.000824,63239.0,63238.0,1.36496821]
[1724722234426,0.000824,63239.0,63238.0,1.203486]
[1724722234694,0.000824,63239.0,63238.0,0.343056]
[1724722234876,0.000824,63239.0,63238.0,0.184924]
[1724722235089,0.002824,63239.0,63238.0,0.184924]
[1724722235256,0.160954,63239.0,63238.0,0.187924]
[1724722235418,0.158954,63239.0,63238.0,0.187924]
[1724722237183,0.159954,63239.0,63238.0,0.187924]
[1724722239826,0.159954,63239.0,63238.0,0.184924]
[1724722242664,0.001824,63239.0,63238.0,0.184924]
[1724722243008,0.159954,63239.0,63238.0,0.184924]
[1724722243728,0.001824,63239.0,63238.0,0.184924]
[1724722244357,0.159954,63239.0,63238.0,0.184924]
[1724722244959,0.001824,63239.0,63238.0,0.184924]
[1724722247296,0.02660894,63239.0,63238.0,0.19012318]
[1724722247734,0.02660894,63239.0,63238.0,0.184924]
[1724722249575,0.02660894,63239.0,63238.0,0.346056]
[1724722251153,0.001824,63239.0,63238.0,0.343056]
[1724722252746,0.02660841,63239.0,63238.0,0.184924]